bitfinex-derivatives/quotes_BTCF0:USTF0_20250327
["timestamp","ask_amount","ask_price","bid_price","bid_amount"]
[1743039971317,0.50214593,87351.0,87350.0,0.00116]
[1743039971615,0.1144774,87343.0,87342.0,0.00017172]
[1743039971816,0.48412299,87343.0,87342.0,0.00137172]
[1743039972208,0.50099643,87343.0,87342.0,0.00137172]
[1743039972405,0.56399643,87343.0,87342.0,0.00017172]
[1743039973120,0.57248207,87343.0,87342.0,0.00017172]
[1743039976418,0.57273966,87343.0,87342.0,0.00017172]
[1743039977322,0.57333967,87343.0,87342.0,0.00017172]
[1743039977913,0.57335443,87343.0,87342.0,0.00017172]
[1743039978109,0.57335435,87343.0,87342.0,0.00017172]
[1743039979924,0.54125435,87343.0,87342.0,0.00017172]
[1743039982838,0.54125435,87343.0,87320.0,0.20556233]
[1743039982839,0.1145062,87321.0,87320.0,0.20556233]
[1743039983038,0.48442406,87321.0,87320.0,0.00161808]
[1743039983338,0.5024575,87321.0,87320.0,0.00161808]
[1743039983636,0.5024575,87321.0,87320.0,8e-08]
[1743039983837,0.1145088,87319.0,87318.0,0.22245469]
[1743039984026,0.1145088,87319.0,87318.0,0.22329469]
[1743039984027,0.12446666,87319.0,87318.0,0.22329469]
[1743039984226,0.12046666,87319.0,87318.0,0.22329469]
[1743039984632,0.12990723,87319.0,87318.0,0.22329469]
[1743039984834,0.14578067,87319.0,87318.0,0.22329469]
[1743039985430,0.14078067,87319.0,87318.0,0.22329469]
[1743039986244,0.14078067,87319.0,87318.0,0.22529469]
[1743039986433,0.14078067,87319.0,87318.0,0.22629469]
[1743039986834,0.14078067,87319.0,87318.0,0.00384]
[1743039987143,0.1145219,87309.0,87308.0,0.0329]
[1743039987334,0.59647977,87309.0,87308.0,0.0329]
[1743039988044,0.61335321,87309.0,87308.0,0.0329]
[1743039988436,0.64595321,87309.0,87308.0,0.0369]
[1743039989539,0.64595321,87309.0,87308.0,0.0399]
[1743039990440,0.64595321,87309.0,87308.0,0.007]
[1743039991839,0.28515321,87309.0,87308.0,0.007]
[1743039992035,0.64595321,87309.0,87308.0,0.007]
[1743039993244,0.6459502,87309.0,87308.0,0.007]
[1743039993943,0.64593619,87309.0,87308.0,0.007]
[1743039995145,0.64594699,87309.0,87308.0,0.007]
[1743039996938,0.64611493,87309.0,87308.0,0.007]
[1743039998240,0.28531493,87309.0,87308.0,0.007]
[1743039998439,1.00691493,87309.0,87308.0,0.003]
[1743039998846,1.01900998,87309.0,87308.0,0.003]
[1743039999536,1.00691493,87309.0,87308.0,0.003]
[1743039999739,1.00691493,87309.0,87300.0,0.00017172]
[1743039999740,0.1145272,87305.0,87300.0,0.00017172]
[1743039999941,0.1145324,87301.0,87300.0,0.00017172]
[1743040000241,0.48521199,87301.0,87300.0,0.00017172]
[1743040000644,0.50208543,87301.0,87300.0,0.00017172]
[1743040000850,0.5021004,87301.0,87300.0,0.00017172]
[1743040001150,0.5011004,87301.0,87300.0,0.00017172]
[1743040001550,0.5011004,87301.0,87300.0,0.00217172]
[1743040001742,0.5001004,87301.0,87300.0,0.00217172]
[1743040002252,0.51506929,87301.0,87300.0,0.00217172]
[1743040002747,0.51506929,87301.0,87300.0,0.00417172]
[1743040003249,0.5001004,87301.0,87300.0,0.00417172]
[1743040003757,0.51220495,87301.0,87300.0,0.00417172]
[1743040004247,0.52714168,87301.0,87300.0,0.00417172]
[1743040005646,0.51503713,87301.0,87300.0,0.00417172]
[1743040007651,0.62651713,87301.0,87300.0,0.00417172]
[1743040009059,0.65811713,87301.0,87300.0,0.00417172]
[1743040010349,0.65864651,87301.0,87300.0,0.00046814]
[1743040011151,0.65864651,87301.0,87295.0,0.0327]
[1743040011152,0.114539,87296.0,87295.0,0.0327]
[1743040011459,0.13989967,87296.0,87295.0,0.0327]
[1743040011959,0.15677311,87296.0,87295.0,0.0327]
[1743040012458,0.15674371,87296.0,87295.0,0.0327]
[1743040012854,0.16540203,87296.0,87295.0,0.0327]
[1743040013553,0.88700203,87296.0,87295.0,0.0327]
[1743040014250,0.88700338,87296.0,87295.0,0.0327]
[1743040015360,0.89677747,87296.0,87295.0,0.0327]
[1743040016154,0.89677487,87296.0,87295.0,0.0327]
[1743040022356,0.1145482,87289.0,87287.0,0.00017182]
[1743040022666,0.61211822,87289.0,87287.0,0.00017182]
[1743040022865,0.63472145,87289.0,87287.0,0.00017182]
[1743040023059,0.63472149,87289.0,87287.0,0.00017182]
[1743040023260,0.62899166,87289.0,87287.0,0.00017182]
[1743040023965,0.62899166,87289.0,87288.0,0.00245825]
[1743040024367,0.62899166,87289.0,87288.0,0.03725825]
[1743040026562,0.98979166,87289.0,87288.0,0.03725825]
[1743040026963,0.9893799,87289.0,87288.0,0.03725825]
[1743040027364,0.9913799,87289.0,87288.0,0.03325825]
[1743040027570,0.9933799,87289.0,87288.0,0.03325825]
[1743040028272,0.2717799,87289.0,87288.0,0.03325825]
[1743040028471,0.9933799,87289.0,87288.0,0.03325825]
[1743040028861,0.99338481,87289.0,87288.0,0.03325825]
[1743040029871,0.99338481,87289.0,87287.0,0.00017182]
[1743040029872,0.1145495,87288.0,87287.0,0.00017182]
[1743040030068,0.89397267,87288.0,87287.0,0.00017182]
[1743040030274,0.91084611,87288.0,87287.0,0.00017182]
[1743040030463,0.89587801,87288.0,87287.0,0.00017182]
[1743040031068,0.89787801,87288.0,87287.0,0.00017182]
[1743040031575,0.89987801,87288.0,87287.0,0.00017182]
[1743040033475,1.01131801,87288.0,87287.0,0.00017182]
[1743040036669,1.01094516,87288.0,87287.0,0.00017182]
[1743040040381,0.65014516,87288.0,87287.0,0.00017182]
[1743040041671,0.78719951,87288.0,87287.0,0.00017182]
[1743040042384,0.78738841,87288.0,87287.0,0.00017182]
[1743040045879,0.42658841,87288.0,87287.0,0.00017182]
[1743040046079,0.65033406,87288.0,87287.0,0.00017182]
[1743040047873,0.64116295,87288.0,87287.0,0.00017182]
[1743040048074,0.65030335,87288.0,87287.0,7.2e-06]
[1743040048480,0.28950335,87288.0,87287.0,7.2e-06]
[1743040048680,0.65030335,87288.0,87287.0,7.2e-06]
[1743040051692,0.64116295,87288.0,87287.0,7.2e-06]
[1743040051894,0.65045472,87288.0,87287.0,7.2e-06]
[1743040053491,0.70615225,87288.0,87287.0,7.2e-06]
[1743040053682,0.70615933,87288.0,87287.0,7.2e-06]
[1743040055586,0.70616058,87288.0,87287.0,7.2e-06]
[1743040057381,0.34536058,87288.0,87287.0,7.2e-06]
[1743040057595,0.70616058,87288.0,87287.0,7.2e-06]
[1743040059383,0.70615909,87288.0,87287.0,7.2e-06]
[1743040059583,0.34535909,87288.0,87287.0,7.2e-06]
[1743040059776,0.70615909,87288.0,87287.0,7.2e-06]
[1743040061681,0.70617246,87288.0,87287.0,7.2e-06]
[1743040064094,0.87763045,87288.0,87287.0,7.2e-06]
[1743040064485,0.51683045,87288.0,87287.0,7.2e-06]
[1743040064886,0.87763045,87288.0,87287.0,7.2e-06]
[1743040065186,0.51680005,87288.0,87287.0,7.2e-06]
[1743040065382,0.87760005,87288.0,87287.0,7.2e-06]
[1743040066798,0.114556,87283.0,87282.0,0.031]
[1743040066994,0.12467758,87283.0,87282.0,0.03184]
[1743040067195,0.12460139,87283.0,87282.0,0.03184]
[1743040067387,0.14147483,87283.0,87282.0,0.03184]
[1743040068198,0.14147483,87283.0,87282.0,0.1463974]
[1743040068388,0.14247483,87283.0,87282.0,0.1463974]
[1743040068811,0.14347483,87283.0,87282.0,0.1463974]
[1743040071698,0.14347483,87283.0,87282.0,0.1790974]
[1743040072292,0.14347483,87283.0,87282.0,0.03354]
[1743040072492,0.21127483,87283.0,87282.0,0.03354]
[1743040072702,0.21127483,87283.0,87282.0,0.1480974]
[1743040072997,0.21127483,87283.0,87282.0,0.1788974]
[1743040073392,0.21127483,87283.0,87282.0,0.06434]
[1743040075790,0.22619961,87283.0,87282.0,0.06434]
[1743040075992,0.22619961,87283.0,87282.0,0.1788974]
[1743040076192,0.22619961,87283.0,87282.0,0.2125974]
[1743040076597,0.22632175,87283.0,87282.0,0.2125974]
[1743040076800,0.17809725,87283.0,87282.0,0.2125974]
[1743040076997,0.14359725,87283.0,87282.0,0.2125974]
[1743040077198,0.02904125,87283.0,87282.0,0.2125974]
[1743040078001,0.04314929,87283.0,87282.0,0.2125974]
[1743040078199,0.04394929,87283.0,87282.0,0.2125974]
[1743040078400,0.04394929,87283.0,87282.0,1.7125974]
[1743040078601,0.04314929,87283.0,87282.0,1.7125974]
[1743040078989,0.04314929,87283.0,87282.0,1.72252982]
[1743040081798,0.04319111,87283.0,87282.0,1.72252982]
[1743040082397,0.04319111,87283.0,87282.0,1.68882982]
[1743040083101,8e-05,87284.0,87283.0,0.114556]
[1743040083300,0.05744472,87291.0,87290.0,0.1145469]
[1743040083506,0.00097182,87291.0,87290.0,0.1153469]
[1743040083700,0.13711154,87299.0,87292.0,0.0572716]
[1743040084003,0.13711154,87299.0,87298.0,0.1145364]
[1743040084208,0.13771155,87299.0,87298.0,0.1155764]
[1743040084891,0.14071155,87299.0,87298.0,0.1458764]
[1743040085300,0.14071155,87299.0,87298.0,0.1797764]
[1743040085490,0.14271155,87299.0,87298.0,0.1797764]
[1743040086288,0.14671155,87299.0,87298.0,0.1797764]
[1743040086490,0.00960001,87299.0,87298.0,0.38553325]
[1743040086692,0.1235351,87299.0,87298.0,0.38553325]
[1743040086903,0.1246951,87299.0,87298.0,0.38553325]
[1743040087305,0.1850951,87299.0,87298.0,0.38553325]
[1743040088102,0.1830951,87299.0,87298.0,0.38553325]
[1743040091106,0.1830951,87299.0,87298.0,0.1797764]
[1743040093106,0.19808765,87299.0,87298.0,0.1797764]
[1743040094604,0.20923303,87299.0,87298.0,0.1797764]
[1743040095003,0.20926844,87299.0,87298.0,0.1797764]
[1743040095202,0.21866091,87299.0,87298.0,0.1797764]
[1743040095600,0.22562719,87299.0,87298.0,0.1797764]
[1743040096813,0.22560599,87299.0,87298.0,0.1797764]
[1743040097216,0.08057089,87299.0,87298.0,0.1797764]
[1743040097404,0.02001577,87299.0,87298.0,0.1797764]
[1743040097601,0.0163506,87299.0,87298.0,0.74958425]
[1743040097908,0.00696628,87299.0,87298.0,0.74958425]
[1743040098217,0.00696628,87299.0,87298.0,2.24958425]
[1743040098714,8e-05,87301.0,87300.0,0.1145337]
[1743040098907,8e-05,87301.0,87300.0,0.8859737]
[1743040099103,0.0336,87312.0,87306.0,0.1145259]
[1743040099310,0.00911117,87311.0,87306.0,1.7269659]
[1743040099505,0.00928299,87307.0,87306.0,1.7269659]
[1743040100014,0.0161505,87307.0,87306.0,1.7897659]
[1743040100516,0.0494505,87307.0,87306.0,1.7897659]
[1743040100815,0.04258299,87307.0,87306.0,1.7897659]
[1743040101012,0.04258299,87307.0,87306.0,2.1505659]
[1743040101314,0.04658299,87307.0,87306.0,2.0392059]
[1743040101505,0.04658299,87307.0,87306.0,2.1505659]
[1743040101506,0.05058299,87307.0,87306.0,2.1505659]
[1743040101917,0.05058299,87307.0,87306.0,2.35632275]
[1743040102105,0.04147182,87307.0,87306.0,2.35632275]
[1743040103617,0.03747182,87307.0,87306.0,2.35632275]
[1743040104209,0.04258637,87307.0,87306.0,2.35632275]
[1743040106423,0.04944766,87307.0,87306.0,2.1505659]
[1743040111428,0.04944766,87307.0,87306.0,1.7897659]
[1743040111619,0.04944766,87307.0,87306.0,2.1505659]
[1743040112419,0.04944766,87307.0,87306.0,1.7897659]
[1743040112613,0.04944766,87307.0,87306.0,2.1505659]
[1743040115618,0.04944766,87307.0,87306.0,1.7897659]
[1743040115819,0.04944766,87307.0,87306.0,2.1505659]
[1743040116318,0.04962831,87307.0,87306.0,1.7897659]
[1743040116520,0.04962831,87307.0,87306.0,2.1505659]
[1743040117424,0.04962831,87307.0,87306.0,1.7897659]
[1743040117727,0.04962831,87307.0,87306.0,2.1505659]
[1743040120730,0.04962831,87307.0,87306.0,2.42490836]
[1743040121343,0.01632831,87307.0,87306.0,2.42490836]
[1743040121734,1e-08,87307.0,87306.0,2.42490836]
[1743040121946,0.01214372,87327.0,87326.0,0.1144996]
[1743040122146,0.01214372,87327.0,87326.0,1.3570196]
[1743040122147,0.00989215,87327.0,87326.0,1.3570196]
[1743040122345,0.0941,87336.0,87328.0,0.114497]
[1743040122545,0.04173337,87329.0,87328.0,1.615537]
[1743040122849,0.08846634,87329.0,87328.0,1.615537]
[1743040123046,0.07353337,87329.0,87328.0,1.615537]
[1743040123240,0.07353337,87329.0,87328.0,1.677537]
[1743040123845,0.07343095,87329.0,87328.0,1.68756229]
[1743040124747,0.0004,87329.0,87328.0,1.68756229]
[1743040124941,0.0024,87329.0,87328.0,1.68756229]
[1743040125141,0.0044,87329.0,87328.0,2.09716229]
[1743040125644,0.0044,87329.0,87328.0,2.10573204]
[1743040128348,0.0024,87329.0,87328.0,2.10573204]
[1743040128545,0.0004,87329.0,87328.0,2.10873204]
[1743040128850,0.0004,87329.0,87328.0,2.11073204]
[1743040129054,0.0004,87329.0,87328.0,3.16858129]
[1743040130145,0.0004,87329.0,87328.0,3.27986129]
[1743040133752,0.0004,87329.0,87328.0,2.94361204]
[1743040135158,0.0004,87329.0,87328.0,3.09361204]
[1743040135457,0.00017182,87337.0,87336.0,0.1144865]
[1743040135659,0.00017182,87337.0,87336.0,0.4763265]
[1743040136346,0.00017182,87337.0,87336.0,0.5731265]
[1743040136758,0.00017182,87337.0,87336.0,0.2123265]
[1743040137058,0.00017182,87337.0,87336.0,0.9339265]
[1743040137959,0.00017182,87337.0,87336.0,0.9349265]
[1743040138658,0.00017182,87337.0,87336.0,1.3445265]
[1743040139561,0.00017182,87337.0,87336.0,0.9837265]
[1743040139752,0.00017182,87337.0,87336.0,1.3445265]
[1743040140857,0.00017182,87337.0,87336.0,1.54944313]
[1743040144753,0.00017182,87337.0,87336.0,1.3445265]
[1743040145160,0.00017182,87337.0,87336.0,1.3140265]
[1743040145557,0.00017182,87337.0,87336.0,1.4252665]
[1743040145756,0.00017182,87337.0,87336.0,0.7036665]
[1743040145951,0.00017182,87337.0,87336.0,1.4252665]
[1743040147668,0.00017182,87337.0,87336.0,1.69848868]
[1743040150369,0.00017182,87337.0,87336.0,0.97688868]
[1743040150569,0.00017182,87337.0,87336.0,1.69848868]
[1743040151169,0.00931055,87337.0,87336.0,1.76709606]
[1743040151369,0.07451055,87337.0,87336.0,2.10359736]
[1743040152871,0.0004,87361.0,87360.0,0.1144551]
[1743040153069,0.00108,87361.0,87360.0,0.5864951]
[1743040153367,0.0004,87361.0,87360.0,2.0875351]
[1743040153566,0.0004,87361.0,87360.0,2.1184351]
[1743040154271,0.0064,87361.0,87360.0,2.1536351]
[1743040155568,0.0064,87361.0,87360.0,2.4901364]
[1743040156066,0.0064,87361.0,87360.0,2.8997364]
[1743040156367,0.0064,87361.0,87360.0,2.91002101]
[1743040156573,0.0393,87361.0,87360.0,2.91002101]
[1743040156772,0.0363,87361.0,87360.0,2.91002101]
[1743040156962,0.0363,87361.0,87360.0,2.91302101]
[1743040157266,0.0363,87361.0,87360.0,2.91702101]
[1743040157267,0.0333,87361.0,87360.0,2.91702101]
[1743040158270,0.0333,87361.0,87360.0,2.91602101]
[1743040158670,0.0310717,87369.0,87360.0,2.91602101]
[1743040158671,0.0001717,87369.0,87363.0,0.1144511]
[1743040158861,0.0621,87385.0,87384.0,0.1144236]
[1743040159062,0.06314001,87385.0,87384.0,0.4763436]
[1743040159265,0.06314001,87385.0,87384.0,1.9763436]
[1743040159469,0.0621,87385.0,87384.0,1.9763436]
[1743040160870,0.0651,87385.0,87384.0,1.9763436]
[1743040161271,0.0671,87385.0,87384.0,1.98683078]
[1743040161675,0.0661,87385.0,87384.0,1.98683078]
[1743040162969,0.07695955,87385.0,87384.0,1.98683078]
[1743040163179,0.07495955,87385.0,87384.0,1.98683078]
[1743040163380,0.07595955,87385.0,87384.0,1.98683078]
[1743040164771,0.08473815,87385.0,87384.0,1.98683078]
[1743040165185,0.09152166,87385.0,87384.0,1.98683078]
[1743040167278,0.09151864,87385.0,87384.0,1.98683078]
[1743040168285,0.08065909,87385.0,87384.0,1.98683078]
[1743040168677,8e-05,87391.0,87390.0,0.1144158]
[1743040168875,8e-05,87391.0,87390.0,0.5874558]
[1743040169178,0.00057149,87393.0,87392.0,0.1144132]
[1743040169483,0.00057149,87393.0,87392.0,1.6154532]
[1743040170095,0.00057149,87393.0,87392.0,1.6474532]
[1743040170583,0.00457149,87393.0,87392.0,1.6474532]
[1743040170982,0.00557149,87393.0,87392.0,1.6474532]
[1743040173579,0.00557149,87393.0,87392.0,2.0570532]
[1743040175482,0.00457149,87393.0,87392.0,2.0570532]
[1743040175691,0.00457149,87393.0,87392.0,2.0580532]
[1743040176791,0.00057149,87393.0,87392.0,2.0580532]
[1743040179890,0.03327149,87393.0,87392.0,2.0580532]
[1743040183397,0.03327149,87393.0,87392.0,2.7796532]
[1743040183586,0.00057149,87393.0,87392.0,2.7796532]
[1743040183788,0.00727491,87393.0,87392.0,2.8908132]
[1743040184389,0.00727491,87393.0,87392.0,2.9240132]
[1743040185303,0.0004,87409.0,87399.0,0.114404]
[1743040185487,0.0004,87409.0,87408.0,0.1143922]
[1743040185686,0.0004,87409.0,87408.0,0.5874322]
[1743040186093,0.0004,87409.0,87408.0,2.1198322]
[1743040186793,8e-05,87436.0,87424.0,0.1143713]
[1743040186995,0.00100001,87425.0,87424.0,0.5862913]
[1743040187194,0.0004,87425.0,87424.0,0.5873313]
[1743040187499,0.00144001,87425.0,87424.0,2.0873313]
[1743040187696,0.0628,87425.0,87424.0,2.0873313]
[1743040188397,0.13711154,87428.0,87424.0,2.0873313]
[1743040188700,0.0313,87434.0,87433.0,0.1143595]
[1743040188897,0.03194,87434.0,87433.0,0.2254795]
[1743040189095,0.00064,87434.0,87433.0,0.23682632]
[1743040189300,0.17145799,87436.0,87435.0,0.1143569]
[1743040189597,0.172578,87436.0,87435.0,0.1154769]
[1743040189800,0.17369801,87436.0,87435.0,0.1154769]
[1743040190101,0.17145799,87436.0,87435.0,0.1154769]
[1743040190502,0.17145799,87436.0,87435.0,0.2265969]
[1743040190891,0.17645799,87436.0,87435.0,0.2265969]
[1743040191191,0.17645799,87436.0,87435.0,1.04437876]
[1743040191192,0.0255586,87436.0,87435.0,1.04437876]
[1743040191393,0.23843947,87459.0,87435.0,1.04437876]
[1743040191394,0.2281959,87506.0,87504.0,0.1142667]
[1743040191701,0.34246,87506.0,87505.0,0.7216]
[1743040191898,0.34306001,87506.0,87505.0,0.7216]
[1743040192203,0.50201656,87506.0,87505.0,0.7216]
[1743040192400,0.50141655,87506.0,87505.0,0.7216]
[1743040192592,0.29893381,87506.0,87505.0,0.7216]
[1743040192998,0.30393381,87506.0,87505.0,0.7216]
[1743040193199,0.31605958,87506.0,87505.0,0.7216]
[1743040193398,0.31605958,87506.0,87505.0,0.8358654]
[1743040193596,0.05217004,87506.0,87505.0,0.8358654]
[1743040194103,0.04004427,87506.0,87505.0,0.8358654]
[1743040194492,0.15430837,87506.0,87505.0,0.7216]
[1743040194694,0.13943751,87506.0,87505.0,0.3608]
[1743040195300,0.13943751,87506.0,87505.0,0.4750654]
[1743040195603,0.02517341,87506.0,87505.0,0.4750654]
[1743040197408,0.02632563,87506.0,87505.0,0.4764654]
[1743040197608,0.02492562,87506.0,87505.0,0.4764654]
[1743040198104,0.02214854,87506.0,87505.0,0.4764654]
[1743040198610,0.01714854,87506.0,87505.0,0.4764654]
[1743040200121,0.02790707,87506.0,87505.0,0.4764654]
[1743040200914,0.02790782,87506.0,87505.0,0.4764654]
[1743040201208,0.29217192,87506.0,87505.0,0.3622]
[1743040201411,0.40321192,87506.0,87505.0,0.3622]
[1743040201711,0.13905653,87506.0,87505.0,0.4764654]
[1743040202209,0.08921653,87506.0,87505.0,0.4764654]
[1743040202811,0.20348063,87506.0,87505.0,0.4764654]
[1743040203008,0.08921653,87506.0,87505.0,0.4764654]
[1743040203314,0.06805076,87506.0,87505.0,0.4764654]
[1743040203817,0.18231486,87506.0,87505.0,0.3622]
[1743040204010,0.18367486,87506.0,87505.0,0.3622]
[1743040206118,0.19234692,87506.0,87505.0,0.3622]
[1743040206321,0.02046765,87506.0,87505.0,0.3622]
[1743040206503,0.13337175,87506.0,87505.0,0.3622]
[1743040206710,0.12605969,87506.0,87505.0,0.3622]
[1743040207207,0.1156241,87506.0,87505.0,0.3622]
[1743040208014,0.12439363,87506.0,87505.0,0.3622]
[1743040208317,0.13485919,87506.0,87505.0,0.3622]
[1743040208816,0.1142641,87506.0,87505.0,0.3622]
[1743040210111,0.1746641,87506.0,87505.0,0.3622]
[1743040212210,0.02525683,87508.0,87505.0,0.3622]
[1743040212413,0.1142628,87507.0,87506.0,0.0616]
[1743040212914,0.1142628,87507.0,87506.0,0.06336]
[1743040214419,0.02527655,87509.0,87506.0,0.06336]
[1743040214621,0.1142628,87507.0,87506.0,0.06336]
[1743040215422,0.1142628,87507.0,87506.0,0.42416]
[1743040215613,0.1461628,87507.0,87506.0,0.42416]
[1743040215811,0.1777628,87507.0,87506.0,0.42416]
[1743040218124,0.1777628,87507.0,87506.0,0.39326]
[1743040218514,0.18413723,87507.0,87506.0,0.39326]
[1743040218922,0.33413723,87507.0,87506.0,0.36256]
[1743040219110,0.1142746,87498.0,87497.0,0.0001715]
[1743040219313,0.11487461,87498.0,87497.0,0.0001715]
[1743040219922,0.13145815,87498.0,87497.0,0.0014115]
[1743040220122,0.19645815,87498.0,87497.0,0.0014115]
[1743040220325,0.20217382,87498.0,87497.0,0.0014115]
[1743040220621,0.20217382,87498.0,87497.0,0.00016967]
[1743040220821,0.20217382,87498.0,87497.0,0.00092]
[1743040222013,0.20217382,87498.0,87497.0,0.03152]
[1743040223318,0.30300471,87498.0,87497.0,0.03152]
[1743040223910,0.81380471,87498.0,87497.0,0.03152]
[1743040224115,0.82802501,87498.0,87497.0,0.00092]
[1743040224322,0.1142772,87496.0,87495.0,0.27281772]
[1743040224616,0.12091287,87496.0,87495.0,0.27373772]
[1743040225019,0.1272873,87496.0,87495.0,0.41159701]
[1743040227116,0.16028758,87496.0,87495.0,0.41159701]
[1743040227520,0.19358758,87496.0,87495.0,0.41159701]
[1743040228926,0.20413254,87496.0,87495.0,0.00092]
[1743040229123,0.12728758,87496.0,87495.0,0.06732]
[1743040229728,0.12728758,87496.0,87495.0,0.09862]
[1743040230930,0.12157163,87496.0,87495.0,0.09862]
[1743040231225,0.1151972,87496.0,87495.0,0.09862]
[1743040231624,0.0571355,87501.0,87498.0,0.1142719]
[1743040231824,0.1142719,87500.0,87499.0,0.4232]
[1743040232024,0.1142719,87500.0,87499.0,0.42416]
[1743040232223,0.1151919,87500.0,87499.0,0.42416]
[1743040233627,0.1142719,87500.0,87499.0,0.42416]
[1743040235423,0.1142719,87500.0,87499.0,0.5384333]
[1743040236728,0.1142719,87500.0,87499.0,0.93831541]
[1743040236926,0.0572147,87502.0,87501.0,0.1142706]
[1743040237126,0.1142676,87504.0,87503.0,0.1713989]
[1743040237321,0.1143476,87504.0,87503.0,0.2029189]
[1743040237521,0.1143476,87504.0,87503.0,0.2361189]
[1743040238330,0.1143476,87504.0,87503.0,0.06472]
[1743040238737,0.1150276,87504.0,87503.0,0.06472]
[1743040239524,0.1799276,87504.0,87503.0,0.06472]
[1743040240137,0.18564342,87504.0,87503.0,0.06472]
[1743040240335,0.1799276,87504.0,87503.0,0.06472]
[1743040240726,0.1799276,87504.0,87503.0,0.00092]
[1743040240928,0.18564345,87504.0,87503.0,0.40080211]
[1743040241126,0.18564345,87504.0,87503.0,0.40084211]
[1743040241439,0.33564345,87504.0,87503.0,0.40084211]
[1743040243036,0.33564345,87504.0,87503.0,0.24983241]
[1743040244629,0.2914076,87504.0,87503.0,0.24983241]
[1743040244833,0.2914076,87504.0,87503.0,0.00096]
[1743040245030,0.2914076,87504.0,87493.0,0.20505641]
[1743040245031,0.1142798,87494.0,87493.0,0.20505641]
[1743040245230,0.47603981,87494.0,87493.0,0.20597641]
[1743040246038,0.50693981,87494.0,87493.0,0.20597641]
[1743040246339,0.53993981,87494.0,87493.0,0.20597641]
[1743040247335,0.58751981,87494.0,87493.0,0.20597641]
[1743040247641,0.22671981,87494.0,87493.0,0.20597641]
[1743040248141,0.22671981,87494.0,87493.0,0.27057641]
[1743040248335,0.22671981,87494.0,87493.0,0.06552]
[1743040253141,0.23554887,87494.0,87493.0,0.06552]
[1743040253346,0.24171122,87494.0,87493.0,0.06552]
[1743040253544,0.24171106,87494.0,87493.0,0.06552]
[1743040254136,0.25198629,87494.0,87493.0,0.06552]
[1743040254733,0.14050629,87494.0,87493.0,0.06552]
[1743040254938,0.25274629,87494.0,87493.0,0.06552]
[1743040255248,0.26825869,87494.0,87493.0,0.06552]
[1743040256242,0.28608219,87494.0,87493.0,0.06552]
[1743040256448,0.26825869,87494.0,87493.0,0.06552]
[1743040256951,0.36365869,87494.0,87493.0,0.06552]
[1743040257444,0.36526696,87494.0,87493.0,0.06552]
[1743040259136,0.33931739,87494.0,87493.0,0.06552]
[1743040259342,0.72473807,87494.0,87493.0,0.06552]
[1743040260849,0.72473807,87494.0,87493.0,0.0646]
[1743040261446,0.66003807,87494.0,87493.0,0.0646]
[1743040261646,0.62933807,87494.0,87493.0,0.0646]
[1743040262042,0.69143807,87494.0,87493.0,0.0646]
[1743040263341,0.51709807,87494.0,87493.0,0.0646]
[1743040263946,0.51709807,87494.0,87493.0,0.1798011]
[1743040264148,0.14114688,87494.0,87493.0,0.1798011]
[1743040265150,0.14114688,87494.0,87493.0,0.06552]
[1743040265347,0.14114688,87494.0,87493.0,0.1798011]
[1743040265743,0.14114688,87494.0,87493.0,0.06552]
[1743040266852,0.14114688,87494.0,87493.0,0.1798011]
[1743040267445,0.14114688,87494.0,87493.0,0.5406011]
[1743040267664,0.14114688,87494.0,87493.0,0.74565751]
[1743040269546,0.13087165,87494.0,87493.0,0.63137641]
[1743040269751,0.13087165,87494.0,87493.0,0.27057641]
[1743040271046,0.13087165,87494.0,87493.0,0.33892855]
[1743040274358,0.13087165,87494.0,87493.0,0.06552]
[1743040275748,0.13035695,87494.0,87493.0,0.06552]
[1743040277050,0.13035695,87494.0,87493.0,0.1798011]
[1743040277756,0.13035695,87494.0,87493.0,0.06552]
[1743040279555,0.13042697,87494.0,87493.0,0.06552]
[1743040279952,0.13042697,87494.0,87493.0,1.56552]
[1743040281262,0.13042697,87494.0,87493.0,0.06552]
[1743040282259,0.14125196,87494.0,87493.0,0.06552]
[1743040282859,0.02697216,87494.0,87493.0,0.1798011]
[1743040283163,0.14125196,87494.0,87493.0,0.1798011]
[1743040284254,0.13222715,87494.0,87493.0,0.5406011]
[1743040285267,0.14014548,87494.0,87493.0,0.5406011]
[1743040285454,0.14106548,87494.0,87493.0,0.5406011]
[1743040285855,0.14106548,87494.0,87493.0,0.42632]
[1743040286065,0.14014548,87494.0,87493.0,0.06552]
[1743040286357,0.14106548,87494.0,87493.0,0.06552]
[1743040286761,0.17186548,87494.0,87493.0,0.06552]
[1743040287062,0.18269668,87494.0,87493.0,0.06552]
[1743040287259,0.18271339,87494.0,87493.0,0.06552]
[1743040287654,0.18272587,87494.0,87493.0,0.06552]
[1743040287855,0.15192587,87494.0,87493.0,0.06552]
[1743040288168,0.15192587,87494.0,87493.0,0.1798011]
[1743040288365,0.15192587,87494.0,87493.0,0.1798411]
[1743040288565,0.15192587,87494.0,87493.0,0.06556]
[1743040289963,0.15192587,87494.0,87493.0,0.1798411]
[1743040290965,0.1518471,87494.0,87493.0,0.1798411]
[1743040294667,0.1518471,87494.0,87493.0,0.06556]
[1743040295468,0.1851471,87494.0,87493.0,0.06556]
[1743040295669,0.1851471,87494.0,87493.0,0.1798411]
[1743040295973,0.1518471,87494.0,87493.0,0.1798411]
[1743040297267,0.16714329,87494.0,87493.0,0.1798411]
[1743040297468,0.16714329,87494.0,87493.0,0.06556]
[1743040298264,0.28090329,87494.0,87493.0,0.03983837]
[1743040298868,0.28804818,87494.0,87493.0,0.03983837]
[1743040299257,0.29519307,87494.0,87493.0,0.03983837]
[1743040299864,0.18143307,87494.0,87493.0,0.12839784]
[1743040300366,0.17487346,87494.0,87493.0,0.12839784]
[1743040301168,0.16772857,87494.0,87493.0,0.12839784]
[1743040301362,0.14169107,87494.0,87493.0,0.12839784]
[1743040301563,0.14169107,87494.0,87493.0,0.48919784]
[1743040302166,0.02741127,87494.0,87493.0,0.48919784]
[1743040302360,0.02649127,87494.0,87493.0,0.48919784]
[1743040302768,0.02032892,87494.0,87493.0,1.98919784]
[1743040302971,0.1142749,87498.0,87497.0,0.0571374]
[1743040303173,0.1142749,87498.0,87497.0,0.1219574]
[1743040304370,0.1142749,87498.0,87497.0,0.13273987]
[1743040304875,0.1142749,87498.0,87497.0,0.49353987]
[1743040305077,0.1142749,87498.0,87497.0,0.4827574]
[1743040305878,8e-05,87499.0,87498.0,0.1142746]
[1743040306073,0.1143533,87499.0,87498.0,0.1152346]
[1743040306876,8e-05,87499.0,87498.0,0.1152346]
[1743040307379,0.1143533,87499.0,87498.0,0.1152346]
[1743040307771,0.12513503,87499.0,87498.0,0.00096]
[1743040307972,0.1143533,87499.0,87498.0,0.1152346]
[1743040308574,0.1153533,87499.0,87498.0,0.1152346]
[1743040309180,0.1143533,87499.0,87498.0,0.1152346]
[1743040309567,0.1152733,87499.0,87498.0,0.1152346]
[1743040311376,0.1152733,87499.0,87498.0,0.4760346]